{"text_format":"1","workbook":"xlsx","n_sheets":18,"sheets":["Politique EP Ets","EP 1","EP 2","EP 3","EP 4","EP 5","EP 6","EP 7","EP 8","EP 9","EP 10","EP AGENT SANS POSTE 1","EP AGENT SANS POSTE 2","EP AGENT SANS POSTE 3","AIDE CALCUL DEPLACEMENT","LISTE DES DIPLOMES EP + DUREE","LISTE DES GRADES ET CATEGORIES","Liste Ets"],"not_rendered":{"charts":0,"images":4,"macros":1,"external_links":4,"defined_names":37,"comments":0,"pivot_tables":0},"unopened":[],"bounds":{"document_bytes":16777216,"sheet_cells":100000,"rows_first":2000,"rows_last":500,"rows_between":2000,"halvings":0,"cell_chars":16384,"cell_head_chars":4096},"cells_cut":0,"cells_raw":0,"read":"whole","date_system":"1900"}

{"sheet":"Politique EP Ets","index":0,"n_rows":26,"n_cols":6,"rows_kept":26,"cut":false,"hidden":false,"merged":[[13,0,13,6],[25,3,25,6],[20,1,20,3],[1,0,1,6],[3,1,3,5],[4,1,4,5],[9,0,9,6],[10,0,10,6]]}
[]
["Politique promotionnelle de l'établissement"]
[]
["Etablissement demandeur :","Choisir dans la liste"]
["Personne en charge du dossier :"]
["Nombre de demandes de financement présentées :"]
["Date CSE :"]
["Avis CSE :"]
[]
["La politique de mutualisation régionale Occitanie vise à augmenter les départs d'agent en promotion afin de répondre au besoin en personnel formé."]
["L'attribution des fonds mutualisés dédiés aux études promotionnelles est soumise aux efforts de financement prévus sur votre plan de formation. Afin d'évaluer cet effort, nous vous demandons de nous communiquer la politique promotionnelle mise en œuvre et d'indiquer le volume financier consacré aux EP : "]
["Description de la politique promotionnelle de l'établissement :"]
[]
[]
[]
["Description du financement de la politique promotionnelle (uniquement les départs 1er semestre 2024) :"]
[null,"N","N+1","N+2","N+3","TOTAL"]
["Montant financé sur le Plan",null,null,null,null,{"$f":"SUM(B18:E18)","v":0}]
["Montant demandé à la mutualisation ",null,null,null,null,{"$f":"SUM(B19:E19)","v":0}]
[]
["Le Directeur de l'établissement :"]
[]
["Fait à "]
["le "]
[]
[null,null,null,"Cachet établissement / signature ordonnateur"]

{"sheet":"EP 1","index":1,"n_rows":25,"n_cols":10,"rows_kept":25,"cut":false,"hidden":false,"merged":[[1,2,1,5],[10,2,10,3],[6,8,6,9],[7,8,7,9],[7,1,7,3],[3,2,3,6],[3,0,3,1],[5,0,5,9],[8,1,8,3],[8,8,8,9],[9,8,9,9],[10,8,10,9],[11,4,11,5],[14,5,15,5],[12,1,12,5],[9,0,9,2],[11,8,11,9],[11,1,11,2],[12,8,12,9],[24,1,24,3],[24,6,24,7],[14,1,14,2],[14,8,15,8],[13,0,13,9],[14,6,15,6],[14,3,15,3],[14,0,15,0],[14,4,15,4],[14,7,15,7],[24,4,24,5],[24,8,24,9],[14,9,15,9]]}
[]
[null,null," DOSSIER  EP ",null,null,null,"Date limite de dépôt :\n17/11/2023"]
[]
["Etablissement demandeur :",null,"Choisir dans la liste"]
[]
["Descriptif de la demande"]
["Priorité du dossier : N°",null,null,null,null,null,null,null,"Précisions Particulières :  "]
["NOM- Prénom : ",null,null,null,"Grade  :","Choisir dans la liste","N°INSEE agent :",null,"ASH ayant bénéficié de la formation 70h "]
["Intitulé de la formation / Diplôme visé :","Choisir dans la liste",null,null,"Forfait de référence :",{"$f":"IF(F8=\"Choisir dans la liste\",\"\",IF(D10>0,\"21,61\",VLOOKUP(F8,'LISTE DES GRADES ET CATEGORIES'!A5:B20,2,FALSE)))","v":""},null,null,"Formation complète"]
["Si formation inférieure à 52 jours, préciser nombre d'heures :",null,null,null,null,null,null,null,"Au-delà des 720 jours CFP"]
["Durée scolarité en mois :",{"$f":"IF(B9=\"Choisir dans la liste\",\"\",IF(D10>0,\"\",VLOOKUP(B9,diplomes,6,FALSE)))","v":""},"Durée scolarité en jours :",null,{"$f":"IF(B9=\"Choisir dans la liste\",\"\",VLOOKUP(B9,'LISTE DES DIPLOMES EP + DUREE'!B3:F34,5,FALSE))","v":""},null,"Date résultat école : ",null,"Module à repasser"]
["Date début :",null,null,"Date Fin :",null,null,"Lieu :",null,"Redoublement"]
["Organisme de formation :",null,null,null,null,null,null,null,"Dernier report avant perte bénéfice concours"]
["Coût Réel de la scolarité"]
["ANNEE","ENSEIGNEMENT",null,"RESERVE ANFH","DEPLACEMENT","RESERVE ANFH","SALAIRES DE L'AGENT","RESERVE ANFH","TOTAL","RESERVE ANFH"]
[null,"Inscription","Pédagogie"]
["N",null,null,null,null,null,{"$f":"IF($B$9=\"Choisir dans la liste\",0,IF($D$10>0,0,VLOOKUP($B$9,'LISTE DES DIPLOMES EP + DUREE'!$B$3:$L$34,7,FALSE)*$F$9))","v":0},null,{"$f":"IF($B$9=\"Choisir dans la liste\",\"\",IF(G17=0,0,B17+C17+E17+G17))","v":""}]
["N+1",null,null,null,null,null,{"$f":"IF($B$9=\"Choisir dans la liste\",0,IF($D$10>0,0,VLOOKUP($B$9,'LISTE DES DIPLOMES EP + DUREE'!$B$3:$L$34,8,FALSE)*$F$9))","v":0},null,{"$f":"IF($B$9=\"Choisir dans la liste\",\"\",IF(G18=0,0,B18+C18+E18+G18))","v":""}]
["N+2",null,null,null,null,null,{"$f":"IF($B$9=\"Choisir dans la liste\",0,IF($D$10>0,0,VLOOKUP($B$9,'LISTE DES DIPLOMES EP + DUREE'!$B$3:$L$34,9,FALSE)*$F$9))","v":0},null,{"$f":"IF($B$9=\"Choisir dans la liste\",\"\",IF(G19=0,0,B19+C19+E19+G19))","v":""}]
["N+3",null,null,null,null,null,{"$f":"IF($B$9=\"Choisir dans la liste\",0,IF($D$10>0,0,VLOOKUP($B$9,'LISTE DES DIPLOMES EP + DUREE'!$B$3:$L$34,10,FALSE)*$F$9))","v":0},null,{"$f":"IF($B$9=\"Choisir dans la liste\",\"\",IF(G20=0,0,B20+C20+E20+G20))","v":""}]
["N+4",null,null,null,null,null,{"$f":"IF($B$9=\"Choisir dans la liste\",0,IF($D$10>0,0,VLOOKUP($B$9,'LISTE DES DIPLOMES EP + DUREE'!$B$3:$L$34,11,FALSE)*$F$9))","v":0},null,{"$f":"IF($B$9=\"Choisir dans la liste\",\"\",IF(G21=0,0,B21+C21+E21+G21))","v":""}]
["Total ",{"$f":"SUM(B17:B21)","v":0},{"$f":"SUM(C17:C21)","v":0},null,{"$f":"SUM(E17:E21)","v":0},null,{"$f":"IF(B9=\"Choisir dans la liste\",\"\",IF(D10>0,\"\",IF(G17=0,\"Coûts ventilés par l'ANFH\",G17+G18+G19+G20+G21)))","v":""},{"$f":"IF(G17>0,0,IF(B11=\"\",D10*F9,B11*F9))","v":{"$error":"#VALUE!"}},{"$f":"IF(G17=0,B22+C22+E22+H22,SUM(I17:I21))","v":{"$error":"#VALUE!"}}]
[]
[]
[null,"Financement sur vos crédits",null,null,{"$f":"I22-I25","v":{"$error":"#VALUE!"}},null,"Financement demandé à l'ANFH"]

{"sheet":"EP 2","index":2,"n_rows":25,"n_cols":10,"rows_kept":25,"cut":false,"hidden":false,"merged":[[7,1,7,3],[7,8,7,9],[1,2,1,5],[3,0,3,1],[3,2,3,6],[5,0,5,9],[6,8,6,9],[13,0,13,9],[8,1,8,3],[8,8,8,9],[9,0,9,2],[9,8,9,9],[10,2,10,3],[10,8,10,9],[11,1,11,2],[11,4,11,5],[11,8,11,9],[12,1,12,5],[12,8,12,9],[14,0,15,0],[14,1,14,2],[14,3,15,3],[14,4,15,4],[14,5,15,5],[14,7,15,7],[14,8,15,8],[14,9,15,9],[24,1,24,3],[24,4,24,5],[24,6,24,7],[24,8,24,9],[14,6,15,6]]}
[]
[null,null," DOSSIER  EP ",null,null,null,"Date limite de dépôt :\n17/11/2023"]
[]
["Etablissement demandeur :",null,"Choisir dans la liste"]
[]
["Descriptif de la demande"]
["Priorité du dossier : N°",null,null,null,null,null,null,null,"Précisions Particulières :  "]
["NOM- Prénom : ",null,null,null,"Grade  :","Choisir dans la liste","N°INSEE agent :",null,"ASH ayant bénéficié de la formation 70h "]
["Intitulé de la formation / Diplôme visé :","Choisir dans la liste",null,null,"Forfait de référence :",{"$f":"IF(F8=\"Choisir dans la liste\",\"\",IF(D10>0,\"21,61\",VLOOKUP(F8,'LISTE DES GRADES ET CATEGORIES'!A5:B20,2,FALSE)))","v":""},null,null,"Formation complète"]
["Si formation inférieure à 52 jours, préciser nombre d'heures :",null,null,null,null,null,null,null,"Au-delà des 720 jours CFP"]
["Durée scolarité en mois :",{"$f":"IF(B9=\"Choisir dans la liste\",\"\",IF(D10>0,\"\",VLOOKUP(B9,diplomes,6,FALSE)))","v":""},"Durée scolarité en jours :",null,{"$f":"IF(B9=\"Choisir dans la liste\",\"\",VLOOKUP(B9,'LISTE DES DIPLOMES EP + DUREE'!B3:F34,5,FALSE))","v":""},null,"Date résultat école : ",null,"Module à repasser"]
["Date début :",null,null,"Date Fin :",null,null,"Lieu :",null,"Redoublement"]
["Organisme de formation :",null,null,null,null,null,null,null,"Dernier report avant perte bénéfice concours"]
["Coût Réel de la scolarité"]
["ANNEE","ENSEIGNEMENT",null,"RESERVE ANFH","DEPLACEMENT","RESERVE ANFH","SALAIRES DE L'AGENT","RESERVE ANFH","TOTAL","RESERVE ANFH"]
[null,"Inscription","Pédagogie"]
["N",null,null,null,null,null,{"$f":"IF($B$9=\"Choisir dans la liste\",0,IF($D$10>0,0,VLOOKUP($B$9,'LISTE DES DIPLOMES EP + DUREE'!$B$3:$L$34,7,FALSE)*$F$9))","v":0},null,{"$f":"IF($B$9=\"Choisir dans la liste\",\"\",IF(G17=0,0,B17+C17+E17+G17))","v":""}]
["N+1",null,null,null,null,null,{"$f":"IF($B$9=\"Choisir dans la liste\",0,IF($D$10>0,0,VLOOKUP($B$9,'LISTE DES DIPLOMES EP + DUREE'!$B$3:$L$34,8,FALSE)*$F$9))","v":0},null,{"$f":"IF($B$9=\"Choisir dans la liste\",\"\",IF(G18=0,0,B18+C18+E18+G18))","v":""}]
["N+2",null,null,null,null,null,{"$f":"IF($B$9=\"Choisir dans la liste\",0,IF($D$10>0,0,VLOOKUP($B$9,'LISTE DES DIPLOMES EP + DUREE'!$B$3:$L$34,9,FALSE)*$F$9))","v":0},null,{"$f":"IF($B$9=\"Choisir dans la liste\",\"\",IF(G19=0,0,B19+C19+E19+G19))","v":""}]
["N+3",null,null,null,null,null,{"$f":"IF($B$9=\"Choisir dans la liste\",0,IF($D$10>0,0,VLOOKUP($B$9,'LISTE DES DIPLOMES EP + DUREE'!$B$3:$L$34,10,FALSE)*$F$9))","v":0},null,{"$f":"IF($B$9=\"Choisir dans la liste\",\"\",IF(G20=0,0,B20+C20+E20+G20))","v":""}]
["N+4",null,null,null,null,null,{"$f":"IF($B$9=\"Choisir dans la liste\",0,IF($D$10>0,0,VLOOKUP($B$9,'LISTE DES DIPLOMES EP + DUREE'!$B$3:$L$34,11,FALSE)*$F$9))","v":0},null,{"$f":"IF($B$9=\"Choisir dans la liste\",\"\",IF(G21=0,0,B21+C21+E21+G21))","v":""}]
["Total ",{"$f":"SUM(B17:B21)","v":0},{"$f":"SUM(C17:C21)","v":0},null,{"$f":"SUM(E17:E21)","v":0},null,{"$f":"IF(B9=\"Choisir dans la liste\",\"\",IF(D10>0,\"\",IF(G17=0,\"Coûts ventilés par l'ANFH\",G17+G18+G19+G20+G21)))","v":""},{"$f":"IF(G17>0,0,IF(B11=\"\",D10*F9,B11*F9))","v":{"$error":"#VALUE!"}},{"$f":"IF(G17=0,B22+C22+E22+H22,SUM(I17:I21))","v":{"$error":"#VALUE!"}}]
[]
[]
[null,"Financement sur vos crédits",null,null,{"$f":"I22-I25","v":{"$error":"#VALUE!"}},null,"Financement demandé à l'ANFH"]

{"sheet":"EP 3","index":3,"n_rows":25,"n_cols":10,"rows_kept":25,"cut":false,"hidden":false,"merged":[[7,1,7,3],[7,8,7,9],[1,2,1,5],[3,0,3,1],[3,2,3,6],[5,0,5,9],[6,8,6,9],[13,0,13,9],[8,1,8,3],[8,8,8,9],[9,0,9,2],[9,8,9,9],[10,2,10,3],[10,8,10,9],[11,1,11,2],[11,4,11,5],[11,8,11,9],[12,1,12,5],[12,8,12,9],[14,0,15,0],[14,1,14,2],[14,3,15,3],[14,4,15,4],[14,5,15,5],[14,7,15,7],[14,8,15,8],[14,9,15,9],[24,1,24,3],[24,4,24,5],[24,6,24,7],[24,8,24,9],[14,6,15,6]]}
[]
[null,null," DOSSIER  EP ",null,null,null,"Date limite de dépôt :\n17/11/2023"]
[]
["Etablissement demandeur :",null,"Choisir dans la liste"]
[]
["Descriptif de la demande"]
["Priorité du dossier : N°",null,null,null,null,null,null,null,"Précisions Particulières :  "]
["NOM- Prénom : ",null,null,null,"Grade  :","Choisir dans la liste","N°INSEE agent :",null,"ASH ayant bénéficié de la formation 70h "]
["Intitulé de la formation / Diplôme visé :","Choisir dans la liste",null,null,"Forfait de référence :",{"$f":"IF(F8=\"Choisir dans la liste\",\"\",IF(D10>0,\"21,61\",VLOOKUP(F8,'LISTE DES GRADES ET CATEGORIES'!A5:B20,2,FALSE)))","v":""},null,null,"Formation complète"]
["Si formation inférieure à 52 jours, préciser nombre d'heures :",null,null,null,null,null,null,null,"Au-delà des 720 jours CFP"]
["Durée scolarité en mois :",{"$f":"IF(B9=\"Choisir dans la liste\",\"\",IF(D10>0,\"\",VLOOKUP(B9,diplomes,6,FALSE)))","v":""},"Durée scolarité en jours :",null,{"$f":"IF(B9=\"Choisir dans la liste\",\"\",VLOOKUP(B9,'LISTE DES DIPLOMES EP + DUREE'!B3:F34,5,FALSE))","v":""},null,"Date résultat école : ",null,"Module à repasser"]
["Date début :",null,null,"Date Fin :",null,null,"Lieu :",null,"Redoublement"]
["Organisme de formation :",null,null,null,null,null,null,null,"Dernier report avant perte bénéfice concours"]
["Coût Réel de la scolarité"]
["ANNEE","ENSEIGNEMENT",null,"RESERVE ANFH","DEPLACEMENT","RESERVE ANFH","SALAIRES DE L'AGENT","RESERVE ANFH","TOTAL","RESERVE ANFH"]
[null,"Inscription","Pédagogie"]
["N",null,null,null,null,null,{"$f":"IF($B$9=\"Choisir dans la liste\",0,IF($D$10>0,0,VLOOKUP($B$9,'LISTE DES DIPLOMES EP + DUREE'!$B$3:$L$34,7,FALSE)*$F$9))","v":0},null,{"$f":"IF($B$9=\"Choisir dans la liste\",\"\",IF(G17=0,0,B17+C17+E17+G17))","v":""}]
["N+1",null,null,null,null,null,{"$f":"IF($B$9=\"Choisir dans la liste\",0,IF($D$10>0,0,VLOOKUP($B$9,'LISTE DES DIPLOMES EP + DUREE'!$B$3:$L$34,8,FALSE)*$F$9))","v":0},null,{"$f":"IF($B$9=\"Choisir dans la liste\",\"\",IF(G18=0,0,B18+C18+E18+G18))","v":""}]
["N+2",null,null,null,null,null,{"$f":"IF($B$9=\"Choisir dans la liste\",0,IF($D$10>0,0,VLOOKUP($B$9,'LISTE DES DIPLOMES EP + DUREE'!$B$3:$L$34,9,FALSE)*$F$9))","v":0},null,{"$f":"IF($B$9=\"Choisir dans la liste\",\"\",IF(G19=0,0,B19+C19+E19+G19))","v":""}]
["N+3",null,null,null,null,null,{"$f":"IF($B$9=\"Choisir dans la liste\",0,IF($D$10>0,0,VLOOKUP($B$9,'LISTE DES DIPLOMES EP + DUREE'!$B$3:$L$34,10,FALSE)*$F$9))","v":0},null,{"$f":"IF($B$9=\"Choisir dans la liste\",\"\",IF(G20=0,0,B20+C20+E20+G20))","v":""}]
["N+4",null,null,null,null,null,{"$f":"IF($B$9=\"Choisir dans la liste\",0,IF($D$10>0,0,VLOOKUP($B$9,'LISTE DES DIPLOMES EP + DUREE'!$B$3:$L$34,11,FALSE)*$F$9))","v":0},null,{"$f":"IF($B$9=\"Choisir dans la liste\",\"\",IF(G21=0,0,B21+C21+E21+G21))","v":""}]
["Total ",{"$f":"SUM(B17:B21)","v":0},{"$f":"SUM(C17:C21)","v":0},null,{"$f":"SUM(E17:E21)","v":0},null,{"$f":"IF(B9=\"Choisir dans la liste\",\"\",IF(D10>0,\"\",IF(G17=0,\"Coûts ventilés par l'ANFH\",G17+G18+G19+G20+G21)))","v":""},{"$f":"IF(G17>0,0,IF(B11=\"\",D10*F9,B11*F9))","v":{"$error":"#VALUE!"}},{"$f":"IF(G17=0,B22+C22+E22+H22,SUM(I17:I21))","v":{"$error":"#VALUE!"}}]
[]
[]
[null,"Financement sur vos crédits",null,null,{"$f":"I22-I25","v":{"$error":"#VALUE!"}},null,"Financement demandé à l'ANFH"]

{"sheet":"EP 4","index":4,"n_rows":25,"n_cols":10,"rows_kept":25,"cut":false,"hidden":false,"merged":[[7,1,7,3],[7,8,7,9],[1,2,1,5],[3,0,3,1],[3,2,3,6],[5,0,5,9],[6,8,6,9],[13,0,13,9],[8,1,8,3],[8,8,8,9],[9,0,9,2],[9,8,9,9],[10,2,10,3],[10,8,10,9],[11,1,11,2],[11,4,11,5],[11,8,11,9],[12,1,12,5],[12,8,12,9],[14,0,15,0],[14,1,14,2],[14,3,15,3],[14,4,15,4],[14,5,15,5],[14,7,15,7],[14,8,15,8],[14,9,15,9],[24,1,24,3],[24,4,24,5],[24,6,24,7],[24,8,24,9],[14,6,15,6]]}
[]
[null,null," DOSSIER  EP ",null,null,null,"Date limite de dépôt :\n17/11/2023"]
[]
["Etablissement demandeur :",null,"Choisir dans la liste"]
[]
["Descriptif de la demande"]
["Priorité du dossier : N°",null,null,null,null,null,null,null,"Précisions Particulières :  "]
["NOM- Prénom : ",null,null,null,"Grade  :","Choisir dans la liste","N°INSEE agent :",null,"ASH ayant bénéficié de la formation 70h "]
["Intitulé de la formation / Diplôme visé :","Choisir dans la liste",null,null,"Forfait de référence :",{"$f":"IF(F8=\"Choisir dans la liste\",\"\",IF(D10>0,\"21,61\",VLOOKUP(F8,'LISTE DES GRADES ET CATEGORIES'!A5:B20,2,FALSE)))","v":""},null,null,"Formation complète"]
["Si formation inférieure à 52 jours, préciser nombre d'heures :",null,null,null,null,null,null,null,"Au-delà des 720 jours CFP"]
["Durée scolarité en mois :",{"$f":"IF(B9=\"Choisir dans la liste\",\"\",IF(D10>0,\"\",VLOOKUP(B9,diplomes,6,FALSE)))","v":""},"Durée scolarité en jours :",null,{"$f":"IF(B9=\"Choisir dans la liste\",\"\",VLOOKUP(B9,'LISTE DES DIPLOMES EP + DUREE'!B3:F34,5,FALSE))","v":""},null,"Date résultat école : ",null,"Module à repasser"]
["Date début :",null,null,"Date Fin :",null,null,"Lieu :",null,"Redoublement"]
["Organisme de formation :",null,null,null,null,null,null,null,"Dernier report avant perte bénéfice concours"]
["Coût Réel de la scolarité"]
["ANNEE","ENSEIGNEMENT",null,"RESERVE ANFH","DEPLACEMENT","RESERVE ANFH","SALAIRES DE L'AGENT","RESERVE ANFH","TOTAL","RESERVE ANFH"]
[null,"Inscription","Pédagogie"]
["N",null,null,null,null,null,{"$f":"IF($B$9=\"Choisir dans la liste\",0,IF($D$10>0,0,VLOOKUP($B$9,'LISTE DES DIPLOMES EP + DUREE'!$B$3:$L$34,7,FALSE)*$F$9))","v":0},null,{"$f":"IF($B$9=\"Choisir dans la liste\",\"\",IF(G17=0,0,B17+C17+E17+G17))","v":""}]
["N+1",null,null,null,null,null,{"$f":"IF($B$9=\"Choisir dans la liste\",0,IF($D$10>0,0,VLOOKUP($B$9,'LISTE DES DIPLOMES EP + DUREE'!$B$3:$L$34,8,FALSE)*$F$9))","v":0},null,{"$f":"IF($B$9=\"Choisir dans la liste\",\"\",IF(G18=0,0,B18+C18+E18+G18))","v":""}]
["N+2",null,null,null,null,null,{"$f":"IF($B$9=\"Choisir dans la liste\",0,IF($D$10>0,0,VLOOKUP($B$9,'LISTE DES DIPLOMES EP + DUREE'!$B$3:$L$34,9,FALSE)*$F$9))","v":0},null,{"$f":"IF($B$9=\"Choisir dans la liste\",\"\",IF(G19=0,0,B19+C19+E19+G19))","v":""}]
["N+3",null,null,null,null,null,{"$f":"IF($B$9=\"Choisir dans la liste\",0,IF($D$10>0,0,VLOOKUP($B$9,'LISTE DES DIPLOMES EP + DUREE'!$B$3:$L$34,10,FALSE)*$F$9))","v":0},null,{"$f":"IF($B$9=\"Choisir dans la liste\",\"\",IF(G20=0,0,B20+C20+E20+G20))","v":""}]
["N+4",null,null,null,null,null,{"$f":"IF($B$9=\"Choisir dans la liste\",0,IF($D$10>0,0,VLOOKUP($B$9,'LISTE DES DIPLOMES EP + DUREE'!$B$3:$L$34,11,FALSE)*$F$9))","v":0},null,{"$f":"IF($B$9=\"Choisir dans la liste\",\"\",IF(G21=0,0,B21+C21+E21+G21))","v":""}]
["Total ",{"$f":"SUM(B17:B21)","v":0},{"$f":"SUM(C17:C21)","v":0},null,{"$f":"SUM(E17:E21)","v":0},null,{"$f":"IF(B9=\"Choisir dans la liste\",\"\",IF(D10>0,\"\",IF(G17=0,\"Coûts ventilés par l'ANFH\",G17+G18+G19+G20+G21)))","v":""},{"$f":"IF(G17>0,0,IF(B11=\"\",D10*F9,B11*F9))","v":{"$error":"#VALUE!"}},{"$f":"IF(G17=0,B22+C22+E22+H22,SUM(I17:I21))","v":{"$error":"#VALUE!"}}]
[]
[]
[null,"Financement sur vos crédits",null,null,{"$f":"I22-I25","v":{"$error":"#VALUE!"}},null,"Financement demandé à l'ANFH"]

{"sheet":"EP 5","index":5,"n_rows":25,"n_cols":10,"rows_kept":25,"cut":false,"hidden":false,"merged":[[7,1,7,3],[7,8,7,9],[1,2,1,5],[3,0,3,1],[3,2,3,6],[5,0,5,9],[6,8,6,9],[13,0,13,9],[8,1,8,3],[8,8,8,9],[9,0,9,2],[9,8,9,9],[10,2,10,3],[10,8,10,9],[11,1,11,2],[11,4,11,5],[11,8,11,9],[12,1,12,5],[12,8,12,9],[14,0,15,0],[14,1,14,2],[14,3,15,3],[14,4,15,4],[14,5,15,5],[14,7,15,7],[14,8,15,8],[14,9,15,9],[24,1,24,3],[24,4,24,5],[24,6,24,7],[24,8,24,9],[14,6,15,6]]}
[]
[null,null," DOSSIER  EP ",null,null,null,"Date limite de dépôt :\n17//11/2023"]
[]
["Etablissement demandeur :",null,"Choisir dans la liste"]
[]
["Descriptif de la demande"]
["Priorité du dossier : N°",null,null,null,null,null,null,null,"Précisions Particulières :  "]
["NOM- Prénom : ",null,null,null,"Grade  :","Choisir dans la liste","N°INSEE agent :",null,"ASH ayant bénéficié de la formation 70h "]
["Intitulé de la formation / Diplôme visé :","Choisir dans la liste",null,null,"Forfait de référence :",{"$f":"IF(F8=\"Choisir dans la liste\",\"\",IF(D10>0,\"21,61\",VLOOKUP(F8,'LISTE DES GRADES ET CATEGORIES'!A5:B20,2,FALSE)))","v":""},null,null,"Formation complète"]
["Si formation inférieure à 52 jours, préciser nombre d'heures :",null,null,null,null,null,null,null,"Au-delà des 720 jours CFP"]
["Durée scolarité en mois :",{"$f":"IF(B9=\"Choisir dans la liste\",\"\",IF(D10>0,\"\",VLOOKUP(B9,diplomes,6,FALSE)))","v":""},"Durée scolarité en jours :",null,{"$f":"IF(B9=\"Choisir dans la liste\",\"\",VLOOKUP(B9,'LISTE DES DIPLOMES EP + DUREE'!B3:F34,5,FALSE))","v":""},null,"Date résultat école : ",null,"Module à repasser"]
["Date début :",null,null,"Date Fin :",null,null,"Lieu :",null,"Redoublement"]
["Organisme de formation :",null,null,null,null,null,null,null,"Dernier report avant perte bénéfice concours"]
["Coût Réel de la scolarité"]
["ANNEE","ENSEIGNEMENT",null,"RESERVE ANFH","DEPLACEMENT","RESERVE ANFH","SALAIRES DE L'AGENT","RESERVE ANFH","TOTAL","RESERVE ANFH"]
[null,"Inscription","Pédagogie"]
["N",null,null,null,null,null,{"$f":"IF($B$9=\"Choisir dans la liste\",0,IF($D$10>0,0,VLOOKUP($B$9,'LISTE DES DIPLOMES EP + DUREE'!$B$3:$L$34,7,FALSE)*$F$9))","v":0},null,{"$f":"IF($B$9=\"Choisir dans la liste\",\"\",IF(G17=0,0,B17+C17+E17+G17))","v":""}]
["N+1",null,null,null,null,null,{"$f":"IF($B$9=\"Choisir dans la liste\",0,IF($D$10>0,0,VLOOKUP($B$9,'LISTE DES DIPLOMES EP + DUREE'!$B$3:$L$34,8,FALSE)*$F$9))","v":0},null,{"$f":"IF($B$9=\"Choisir dans la liste\",\"\",IF(G18=0,0,B18+C18+E18+G18))","v":""}]
["N+2",null,null,null,null,null,{"$f":"IF($B$9=\"Choisir dans la liste\",0,IF($D$10>0,0,VLOOKUP($B$9,'LISTE DES DIPLOMES EP + DUREE'!$B$3:$L$34,9,FALSE)*$F$9))","v":0},null,{"$f":"IF($B$9=\"Choisir dans la liste\",\"\",IF(G19=0,0,B19+C19+E19+G19))","v":""}]
["N+3",null,null,null,null,null,{"$f":"IF($B$9=\"Choisir dans la liste\",0,IF($D$10>0,0,VLOOKUP($B$9,'LISTE DES DIPLOMES EP + DUREE'!$B$3:$L$34,10,FALSE)*$F$9))","v":0},null,{"$f":"IF($B$9=\"Choisir dans la liste\",\"\",IF(G20=0,0,B20+C20+E20+G20))","v":""}]
["N+4",null,null,null,null,null,{"$f":"IF($B$9=\"Choisir dans la liste\",0,IF($D$10>0,0,VLOOKUP($B$9,'LISTE DES DIPLOMES EP + DUREE'!$B$3:$L$34,11,FALSE)*$F$9))","v":0},null,{"$f":"IF($B$9=\"Choisir dans la liste\",\"\",IF(G21=0,0,B21+C21+E21+G21))","v":""}]
["Total ",{"$f":"SUM(B17:B21)","v":0},{"$f":"SUM(C17:C21)","v":0},null,{"$f":"SUM(E17:E21)","v":0},null,{"$f":"IF(B9=\"Choisir dans la liste\",\"\",IF(D10>0,\"\",IF(G17=0,\"Coûts ventilés par l'ANFH\",G17+G18+G19+G20+G21)))","v":""},{"$f":"IF(G17>0,0,IF(B11=\"\",D10*F9,B11*F9))","v":{"$error":"#VALUE!"}},{"$f":"IF(G17=0,B22+C22+E22+H22,SUM(I17:I21))","v":{"$error":"#VALUE!"}}]
[]
[]
[null,"Financement sur vos crédits",null,null,{"$f":"I22-I25","v":{"$error":"#VALUE!"}},null,"Financement demandé à l'ANFH"]

{"sheet":"EP 6","index":6,"n_rows":25,"n_cols":10,"rows_kept":25,"cut":false,"hidden":false,"merged":[[7,1,7,3],[7,8,7,9],[1,2,1,5],[3,0,3,1],[3,2,3,6],[5,0,5,9],[6,8,6,9],[13,0,13,9],[8,1,8,3],[8,8,8,9],[9,0,9,2],[9,8,9,9],[10,2,10,3],[10,8,10,9],[11,1,11,2],[11,4,11,5],[11,8,11,9],[12,1,12,5],[12,8,12,9],[14,0,15,0],[14,1,14,2],[14,3,15,3],[14,4,15,4],[14,5,15,5],[14,7,15,7],[14,8,15,8],[14,9,15,9],[24,1,24,3],[24,4,24,5],[24,6,24,7],[24,8,24,9],[14,6,15,6]]}
[]
[null,null," DOSSIER  EP ",null,null,null,"Date limite de dépôt :\n17/11/2023"]
[]
["Etablissement demandeur :",null,"Choisir dans la liste"]
[]
["Descriptif de la demande"]
["Priorité du dossier : N°",null,null,null,null,null,null,null,"Précisions Particulières :  "]
["NOM- Prénom : ",null,null,null,"Grade  :","Choisir dans la liste","N°INSEE agent :",null,"ASH ayant bénéficié de la formation 70h "]
["Intitulé de la formation / Diplôme visé :","Choisir dans la liste",null,null,"Forfait de référence :",{"$f":"IF(F8=\"Choisir dans la liste\",\"\",IF(D10>0,\"21,61\",VLOOKUP(F8,'LISTE DES GRADES ET CATEGORIES'!A5:B20,2,FALSE)))","v":""},null,null,"Formation complète"]
["Si formation inférieure à 52 jours, préciser nombre d'heures :",null,null,null,null,null,null,null,"Au-delà des 720 jours CFP"]
["Durée scolarité en mois :",{"$f":"IF(B9=\"Choisir dans la liste\",\"\",IF(D10>0,\"\",VLOOKUP(B9,diplomes,6,FALSE)))","v":""},"Durée scolarité en jours :",null,{"$f":"IF(B9=\"Choisir dans la liste\",\"\",VLOOKUP(B9,'LISTE DES DIPLOMES EP + DUREE'!B3:F34,5,FALSE))","v":""},null,"Date résultat école : ",null,"Module à repasser"]
["Date début :",null,null,"Date Fin :",null,null,"Lieu :",null,"Redoublement"]
["Organisme de formation :",null,null,null,null,null,null,null,"Dernier report avant perte bénéfice concours"]
["Coût Réel de la scolarité"]
["ANNEE","ENSEIGNEMENT",null,"RESERVE ANFH","DEPLACEMENT","RESERVE ANFH","SALAIRES DE L'AGENT","RESERVE ANFH","TOTAL","RESERVE ANFH"]
[null,"Inscription","Pédagogie"]
["N",null,null,null,null,null,{"$f":"IF($B$9=\"Choisir dans la liste\",0,IF($D$10>0,0,VLOOKUP($B$9,'LISTE DES DIPLOMES EP + DUREE'!$B$3:$L$34,7,FALSE)*$F$9))","v":0},null,{"$f":"IF($B$9=\"Choisir dans la liste\",\"\",IF(G17=0,0,B17+C17+E17+G17))","v":""}]
["N+1",null,null,null,null,null,{"$f":"IF($B$9=\"Choisir dans la liste\",0,IF($D$10>0,0,VLOOKUP($B$9,'LISTE DES DIPLOMES EP + DUREE'!$B$3:$L$34,8,FALSE)*$F$9))","v":0},null,{"$f":"IF($B$9=\"Choisir dans la liste\",\"\",IF(G18=0,0,B18+C18+E18+G18))","v":""}]
["N+2",null,null,null,null,null,{"$f":"IF($B$9=\"Choisir dans la liste\",0,IF($D$10>0,0,VLOOKUP($B$9,'LISTE DES DIPLOMES EP + DUREE'!$B$3:$L$34,9,FALSE)*$F$9))","v":0},null,{"$f":"IF($B$9=\"Choisir dans la liste\",\"\",IF(G19=0,0,B19+C19+E19+G19))","v":""}]
["N+3",null,null,null,null,null,{"$f":"IF($B$9=\"Choisir dans la liste\",0,IF($D$10>0,0,VLOOKUP($B$9,'LISTE DES DIPLOMES EP + DUREE'!$B$3:$L$34,10,FALSE)*$F$9))","v":0},null,{"$f":"IF($B$9=\"Choisir dans la liste\",\"\",IF(G20=0,0,B20+C20+E20+G20))","v":""}]
["N+4",null,null,null,null,null,{"$f":"IF($B$9=\"Choisir dans la liste\",0,IF($D$10>0,0,VLOOKUP($B$9,'LISTE DES DIPLOMES EP + DUREE'!$B$3:$L$34,11,FALSE)*$F$9))","v":0},null,{"$f":"IF($B$9=\"Choisir dans la liste\",\"\",IF(G21=0,0,B21+C21+E21+G21))","v":""}]
["Total ",{"$f":"SUM(B17:B21)","v":0},{"$f":"SUM(C17:C21)","v":0},null,{"$f":"SUM(E17:E21)","v":0},null,{"$f":"IF(B9=\"Choisir dans la liste\",\"\",IF(D10>0,\"\",IF(G17=0,\"Coûts ventilés par l'ANFH\",G17+G18+G19+G20+G21)))","v":""},{"$f":"IF(G17>0,0,IF(B11=\"\",D10*F9,B11*F9))","v":{"$error":"#VALUE!"}},{"$f":"IF(G17=0,B22+C22+E22+H22,SUM(I17:I21))","v":{"$error":"#VALUE!"}}]
[]
[]
[null,"Financement sur vos crédits",null,null,{"$f":"I22-I25","v":{"$error":"#VALUE!"}},null,"Financement demandé à l'ANFH"]

{"sheet":"EP 7","index":7,"n_rows":25,"n_cols":10,"rows_kept":25,"cut":false,"hidden":false,"merged":[[7,1,7,3],[7,8,7,9],[1,2,1,5],[3,0,3,1],[3,2,3,6],[5,0,5,9],[6,8,6,9],[13,0,13,9],[8,1,8,3],[8,8,8,9],[9,0,9,2],[9,8,9,9],[10,2,10,3],[10,8,10,9],[11,1,11,2],[11,4,11,5],[11,8,11,9],[12,1,12,5],[12,8,12,9],[14,0,15,0],[14,1,14,2],[14,3,15,3],[14,4,15,4],[14,5,15,5],[14,7,15,7],[14,8,15,8],[14,9,15,9],[24,1,24,3],[24,4,24,5],[24,6,24,7],[24,8,24,9],[14,6,15,6]]}
[]
[null,null," DOSSIER  EP ",null,null,null,"Date limite de dépôt :\n17/11/2023"]
[]
["Etablissement demandeur :",null,"Choisir dans la liste"]
[]
["Descriptif de la demande"]
["Priorité du dossier : N°",null,null,null,null,null,null,null,"Précisions Particulières :  "]
["NOM- Prénom : ",null,null,null,"Grade  :","Choisir dans la liste","N°INSEE agent :",null,"ASH ayant bénéficié de la formation 70h "]
["Intitulé de la formation / Diplôme visé :","Choisir dans la liste",null,null,"Forfait de référence :",{"$f":"IF(F8=\"Choisir dans la liste\",\"\",IF(D10>0,\"21,61\",VLOOKUP(F8,'LISTE DES GRADES ET CATEGORIES'!A5:B20,2,FALSE)))","v":""},null,null,"Formation complète"]
["Si formation inférieure à 52 jours, préciser nombre d'heures :",null,null,null,null,null,null,null,"Au-delà des 720 jours CFP"]
["Durée scolarité en mois :",{"$f":"IF(B9=\"Choisir dans la liste\",\"\",IF(D10>0,\"\",VLOOKUP(B9,diplomes,6,FALSE)))","v":""},"Durée scolarité en jours :",null,{"$f":"IF(B9=\"Choisir dans la liste\",\"\",VLOOKUP(B9,'LISTE DES DIPLOMES EP + DUREE'!B3:F34,5,FALSE))","v":""},null,"Date résultat école : ",null,"Module à repasser"]
["Date début :",null,null,"Date Fin :",null,null,"Lieu :",null,"Redoublement"]
["Organisme de formation :",null,null,null,null,null,null,null,"Dernier report avant perte bénéfice concours"]
["Coût Réel de la scolarité"]
["ANNEE","ENSEIGNEMENT",null,"RESERVE ANFH","DEPLACEMENT","RESERVE ANFH","SALAIRES DE L'AGENT","RESERVE ANFH","TOTAL","RESERVE ANFH"]
[null,"Inscription","Pédagogie"]
["N",null,null,null,null,null,{"$f":"IF($B$9=\"Choisir dans la liste\",0,IF($D$10>0,0,VLOOKUP($B$9,'LISTE DES DIPLOMES EP + DUREE'!$B$3:$L$34,7,FALSE)*$F$9))","v":0},null,{"$f":"IF($B$9=\"Choisir dans la liste\",\"\",IF(G17=0,0,B17+C17+E17+G17))","v":""}]
["N+1",null,null,null,null,null,{"$f":"IF($B$9=\"Choisir dans la liste\",0,IF($D$10>0,0,VLOOKUP($B$9,'LISTE DES DIPLOMES EP + DUREE'!$B$3:$L$34,8,FALSE)*$F$9))","v":0},null,{"$f":"IF($B$9=\"Choisir dans la liste\",\"\",IF(G18=0,0,B18+C18+E18+G18))","v":""}]
["N+2",null,null,null,null,null,{"$f":"IF($B$9=\"Choisir dans la liste\",0,IF($D$10>0,0,VLOOKUP($B$9,'LISTE DES DIPLOMES EP + DUREE'!$B$3:$L$34,9,FALSE)*$F$9))","v":0},null,{"$f":"IF($B$9=\"Choisir dans la liste\",\"\",IF(G19=0,0,B19+C19+E19+G19))","v":""}]
["N+3",null,null,null,null,null,{"$f":"IF($B$9=\"Choisir dans la liste\",0,IF($D$10>0,0,VLOOKUP($B$9,'LISTE DES DIPLOMES EP + DUREE'!$B$3:$L$34,10,FALSE)*$F$9))","v":0},null,{"$f":"IF($B$9=\"Choisir dans la liste\",\"\",IF(G20=0,0,B20+C20+E20+G20))","v":""}]
["N+4",null,null,null,null,null,{"$f":"IF($B$9=\"Choisir dans la liste\",0,IF($D$10>0,0,VLOOKUP($B$9,'LISTE DES DIPLOMES EP + DUREE'!$B$3:$L$34,11,FALSE)*$F$9))","v":0},null,{"$f":"IF($B$9=\"Choisir dans la liste\",\"\",IF(G21=0,0,B21+C21+E21+G21))","v":""}]
["Total ",{"$f":"SUM(B17:B21)","v":0},{"$f":"SUM(C17:C21)","v":0},null,{"$f":"SUM(E17:E21)","v":0},null,{"$f":"IF(B9=\"Choisir dans la liste\",\"\",IF(D10>0,\"\",IF(G17=0,\"Coûts ventilés par l'ANFH\",G17+G18+G19+G20+G21)))","v":""},{"$f":"IF(G17>0,0,IF(B11=\"\",D10*F9,B11*F9))","v":{"$error":"#VALUE!"}},{"$f":"IF(G17=0,B22+C22+E22+H22,SUM(I17:I21))","v":{"$error":"#VALUE!"}}]
[]
[]
[null,"Financement sur vos crédits",null,null,{"$f":"I22-I25","v":{"$error":"#VALUE!"}},null,"Financement demandé à l'ANFH"]

{"sheet":"EP 8","index":8,"n_rows":25,"n_cols":10,"rows_kept":25,"cut":false,"hidden":false,"merged":[[7,1,7,3],[7,8,7,9],[1,2,1,5],[3,0,3,1],[3,2,3,6],[5,0,5,9],[6,8,6,9],[13,0,13,9],[8,1,8,3],[8,8,8,9],[9,0,9,2],[9,8,9,9],[10,2,10,3],[10,8,10,9],[11,1,11,2],[11,4,11,5],[11,8,11,9],[12,1,12,5],[12,8,12,9],[14,0,15,0],[14,1,14,2],[14,3,15,3],[14,4,15,4],[14,5,15,5],[14,7,15,7],[14,8,15,8],[14,9,15,9],[24,1,24,3],[24,4,24,5],[24,6,24,7],[24,8,24,9],[14,6,15,6]]}
[]
[null,null," DOSSIER  EP ",null,null,null,"Date limite de dépôt :\n17/11/2023"]
[]
["Etablissement demandeur :",null,"Choisir dans la liste"]
[]
["Descriptif de la demande"]
["Priorité du dossier : N°",null,null,null,null,null,null,null,"Précisions Particulières :  "]
["NOM- Prénom : ",null,null,null,"Grade  :","Choisir dans la liste","N°INSEE agent :",null,"ASH ayant bénéficié de la formation 70h "]
["Intitulé de la formation / Diplôme visé :","Choisir dans la liste",null,null,"Forfait de référence :",{"$f":"IF(F8=\"Choisir dans la liste\",\"\",IF(D10>0,\"21,61\",VLOOKUP(F8,'LISTE DES GRADES ET CATEGORIES'!A5:B20,2,FALSE)))","v":""},null,null,"Formation complète"]
["Si formation inférieure à 52 jours, préciser nombre d'heures :",null,null,null,null,null,null,null,"Au-delà des 720 jours CFP"]
["Durée scolarité en mois :",{"$f":"IF(B9=\"Choisir dans la liste\",\"\",IF(D10>0,\"\",VLOOKUP(B9,diplomes,6,FALSE)))","v":""},"Durée scolarité en jours :",null,{"$f":"IF(B9=\"Choisir dans la liste\",\"\",VLOOKUP(B9,'LISTE DES DIPLOMES EP + DUREE'!B3:F34,5,FALSE))","v":""},null,"Date résultat école : ",null,"Module à repasser"]
["Date début :",null,null,"Date Fin :",null,null,"Lieu :",null,"Redoublement"]
["Organisme de formation :",null,null,null,null,null,null,null,"Dernier report avant perte bénéfice concours"]
["Coût Réel de la scolarité"]
["ANNEE","ENSEIGNEMENT",null,"RESERVE ANFH","DEPLACEMENT","RESERVE ANFH","SALAIRES DE L'AGENT","RESERVE ANFH","TOTAL","RESERVE ANFH"]
[null,"Inscription","Pédagogie"]
["N",null,null,null,null,null,{"$f":"IF($B$9=\"Choisir dans la liste\",0,IF($D$10>0,0,VLOOKUP($B$9,'LISTE DES DIPLOMES EP + DUREE'!$B$3:$L$34,7,FALSE)*$F$9))","v":0},null,{"$f":"IF($B$9=\"Choisir dans la liste\",\"\",IF(G17=0,0,B17+C17+E17+G17))","v":""}]
["N+1",null,null,null,null,null,{"$f":"IF($B$9=\"Choisir dans la liste\",0,IF($D$10>0,0,VLOOKUP($B$9,'LISTE DES DIPLOMES EP + DUREE'!$B$3:$L$34,8,FALSE)*$F$9))","v":0},null,{"$f":"IF($B$9=\"Choisir dans la liste\",\"\",IF(G18=0,0,B18+C18+E18+G18))","v":""}]
["N+2",null,null,null,null,null,{"$f":"IF($B$9=\"Choisir dans la liste\",0,IF($D$10>0,0,VLOOKUP($B$9,'LISTE DES DIPLOMES EP + DUREE'!$B$3:$L$34,9,FALSE)*$F$9))","v":0},null,{"$f":"IF($B$9=\"Choisir dans la liste\",\"\",IF(G19=0,0,B19+C19+E19+G19))","v":""}]
["N+3",null,null,null,null,null,{"$f":"IF($B$9=\"Choisir dans la liste\",0,IF($D$10>0,0,VLOOKUP($B$9,'LISTE DES DIPLOMES EP + DUREE'!$B$3:$L$34,10,FALSE)*$F$9))","v":0},null,{"$f":"IF($B$9=\"Choisir dans la liste\",\"\",IF(G20=0,0,B20+C20+E20+G20))","v":""}]
["N+4",null,null,null,null,null,{"$f":"IF($B$9=\"Choisir dans la liste\",0,IF($D$10>0,0,VLOOKUP($B$9,'LISTE DES DIPLOMES EP + DUREE'!$B$3:$L$34,11,FALSE)*$F$9))","v":0},null,{"$f":"IF($B$9=\"Choisir dans la liste\",\"\",IF(G21=0,0,B21+C21+E21+G21))","v":""}]
["Total ",{"$f":"SUM(B17:B21)","v":0},{"$f":"SUM(C17:C21)","v":0},null,{"$f":"SUM(E17:E21)","v":0},null,{"$f":"IF(B9=\"Choisir dans la liste\",\"\",IF(D10>0,\"\",IF(G17=0,\"Coûts ventilés par l'ANFH\",G17+G18+G19+G20+G21)))","v":""},{"$f":"IF(G17>0,0,IF(B11=\"\",D10*F9,B11*F9))","v":{"$error":"#VALUE!"}},{"$f":"IF(G17=0,B22+C22+E22+H22,SUM(I17:I21))","v":{"$error":"#VALUE!"}}]
[]
[]
[null,"Financement sur vos crédits",null,null,{"$f":"I22-I25","v":{"$error":"#VALUE!"}},null,"Financement demandé à l'ANFH"]

{"sheet":"EP 9","index":9,"n_rows":25,"n_cols":10,"rows_kept":25,"cut":false,"hidden":false,"merged":[[7,1,7,3],[7,8,7,9],[1,2,1,5],[3,0,3,1],[3,2,3,6],[5,0,5,9],[6,8,6,9],[13,0,13,9],[8,1,8,3],[8,8,8,9],[9,0,9,2],[9,8,9,9],[10,2,10,3],[10,8,10,9],[11,1,11,2],[11,4,11,5],[11,8,11,9],[12,1,12,5],[12,8,12,9],[14,0,15,0],[14,1,14,2],[14,3,15,3],[14,4,15,4],[14,5,15,5],[14,7,15,7],[14,8,15,8],[14,9,15,9],[24,1,24,3],[24,4,24,5],[24,6,24,7],[24,8,24,9],[14,6,15,6]]}
[]
[null,null," DOSSIER  EP ",null,null,null,"Date limite de dépôt :\n17/11/2023"]
[]
["Etablissement demandeur :",null,"Choisir dans la liste"]
[]
["Descriptif de la demande"]
["Priorité du dossier : N°",null,null,null,null,null,null,null,"Précisions Particulières :  "]
["NOM- Prénom : ",null,null,null,"Grade  :","Choisir dans la liste","N°INSEE agent :",null,"ASH ayant bénéficié de la formation 70h "]
["Intitulé de la formation / Diplôme visé :","Choisir dans la liste",null,null,"Forfait de référence :",{"$f":"IF(F8=\"Choisir dans la liste\",\"\",IF(D10>0,\"21,61\",VLOOKUP(F8,'LISTE DES GRADES ET CATEGORIES'!A5:B20,2,FALSE)))","v":""},null,null,"Formation complète"]
["Si formation inférieure à 52 jours, préciser nombre d'heures :",null,null,null,null,null,null,null,"Au-delà des 720 jours CFP"]
["Durée scolarité en mois :",{"$f":"IF(B9=\"Choisir dans la liste\",\"\",IF(D10>0,\"\",VLOOKUP(B9,diplomes,6,FALSE)))","v":""},"Durée scolarité en jours :",null,{"$f":"IF(B9=\"Choisir dans la liste\",\"\",VLOOKUP(B9,'LISTE DES DIPLOMES EP + DUREE'!B3:F34,5,FALSE))","v":""},null,"Date résultat école : ",null,"Module à repasser"]
["Date début :",null,null,"Date Fin :",null,null,"Lieu :",null,"Redoublement"]
["Organisme de formation :",null,null,null,null,null,null,null,"Dernier report avant perte bénéfice concours"]
["Coût Réel de la scolarité"]
["ANNEE","ENSEIGNEMENT",null,"RESERVE ANFH","DEPLACEMENT","RESERVE ANFH","SALAIRES DE L'AGENT","RESERVE ANFH","TOTAL","RESERVE ANFH"]
[null,"Inscription","Pédagogie"]
["N",null,null,null,null,null,{"$f":"IF($B$9=\"Choisir dans la liste\",0,IF($D$10>0,0,VLOOKUP($B$9,'LISTE DES DIPLOMES EP + DUREE'!$B$3:$L$34,7,FALSE)*$F$9))","v":0},null,{"$f":"IF($B$9=\"Choisir dans la liste\",\"\",IF(G17=0,0,B17+C17+E17+G17))","v":""}]
["N+1",null,null,null,null,null,{"$f":"IF($B$9=\"Choisir dans la liste\",0,IF($D$10>0,0,VLOOKUP($B$9,'LISTE DES DIPLOMES EP + DUREE'!$B$3:$L$34,8,FALSE)*$F$9))","v":0},null,{"$f":"IF($B$9=\"Choisir dans la liste\",\"\",IF(G18=0,0,B18+C18+E18+G18))","v":""}]
["N+2",null,null,null,null,null,{"$f":"IF($B$9=\"Choisir dans la liste\",0,IF($D$10>0,0,VLOOKUP($B$9,'LISTE DES DIPLOMES EP + DUREE'!$B$3:$L$34,9,FALSE)*$F$9))","v":0},null,{"$f":"IF($B$9=\"Choisir dans la liste\",\"\",IF(G19=0,0,B19+C19+E19+G19))","v":""}]
["N+3",null,null,null,null,null,{"$f":"IF($B$9=\"Choisir dans la liste\",0,IF($D$10>0,0,VLOOKUP($B$9,'LISTE DES DIPLOMES EP + DUREE'!$B$3:$L$34,10,FALSE)*$F$9))","v":0},null,{"$f":"IF($B$9=\"Choisir dans la liste\",\"\",IF(G20=0,0,B20+C20+E20+G20))","v":""}]
["N+4",null,null,null,null,null,{"$f":"IF($B$9=\"Choisir dans la liste\",0,IF($D$10>0,0,VLOOKUP($B$9,'LISTE DES DIPLOMES EP + DUREE'!$B$3:$L$34,11,FALSE)*$F$9))","v":0},null,{"$f":"IF($B$9=\"Choisir dans la liste\",\"\",IF(G21=0,0,B21+C21+E21+G21))","v":""}]
["Total ",{"$f":"SUM(B17:B21)","v":0},{"$f":"SUM(C17:C21)","v":0},null,{"$f":"SUM(E17:E21)","v":0},null,{"$f":"IF(B9=\"Choisir dans la liste\",\"\",IF(D10>0,\"\",IF(G17=0,\"Coûts ventilés par l'ANFH\",G17+G18+G19+G20+G21)))","v":""},{"$f":"IF(G17>0,0,IF(B11=\"\",D10*F9,B11*F9))","v":{"$error":"#VALUE!"}},{"$f":"IF(G17=0,B22+C22+E22+H22,SUM(I17:I21))","v":{"$error":"#VALUE!"}}]
[]
[]
[null,"Financement sur vos crédits",null,null,{"$f":"I22-I25","v":{"$error":"#VALUE!"}},null,"Financement demandé à l'ANFH"]

{"sheet":"EP 10","index":10,"n_rows":25,"n_cols":10,"rows_kept":25,"cut":false,"hidden":false,"merged":[[7,1,7,3],[7,8,7,9],[1,2,1,5],[3,0,3,1],[3,2,3,6],[5,0,5,9],[6,8,6,9],[13,0,13,9],[8,1,8,3],[8,8,8,9],[9,0,9,2],[9,8,9,9],[10,2,10,3],[10,8,10,9],[11,1,11,2],[11,4,11,5],[11,8,11,9],[12,1,12,5],[12,8,12,9],[14,0,15,0],[14,1,14,2],[14,3,15,3],[14,4,15,4],[14,5,15,5],[14,7,15,7],[14,8,15,8],[14,9,15,9],[24,1,24,3],[24,4,24,5],[24,6,24,7],[24,8,24,9],[14,6,15,6]]}
[]
[null,null," DOSSIER  EP ",null,null,null,"Date limite de dépôt :\n17/11/2023"]
[]
["Etablissement demandeur :",null,"Choisir dans la liste"]
[]
["Descriptif de la demande"]
["Priorité du dossier : N°",null,null,null,null,null,null,null,"Précisions Particulières :  "]
["NOM- Prénom : ",null,null,null,"Grade  :","Choisir dans la liste","N°INSEE agent :",null,"ASH ayant bénéficié de la formation 70h "]
["Intitulé de la formation / Diplôme visé :","Choisir dans la liste",null,null,"Forfait de référence :",{"$f":"IF(F8=\"Choisir dans la liste\",\"\",IF(D10>0,\"21,61\",VLOOKUP(F8,'LISTE DES GRADES ET CATEGORIES'!A5:B20,2,FALSE)))","v":""},null,null,"Formation complète"]
["Si formation inférieure à 52 jours, préciser nombre d'heures :",null,null,null,null,null,null,null,"Au-delà des 720 jours CFP"]
["Durée scolarité en mois :",{"$f":"IF(B9=\"Choisir dans la liste\",\"\",IF(D10>0,\"\",VLOOKUP(B9,diplomes,6,FALSE)))","v":""},"Durée scolarité en jours :",null,{"$f":"IF(B9=\"Choisir dans la liste\",\"\",VLOOKUP(B9,'LISTE DES DIPLOMES EP + DUREE'!B3:F34,5,FALSE))","v":""},null,"Date résultat école : ",null,"Module à repasser"]
["Date début :",null,null,"Date Fin :",null,null,"Lieu :",null,"Redoublement"]
["Organisme de formation :",null,null,null,null,null,null,null,"Dernier report avant perte bénéfice concours"]
["Coût Réel de la scolarité"]
["ANNEE","ENSEIGNEMENT",null,"RESERVE ANFH","DEPLACEMENT","RESERVE ANFH","SALAIRES DE L'AGENT","RESERVE ANFH","TOTAL","RESERVE ANFH"]
[null,"Inscription","Pédagogie"]
["N",null,null,null,null,null,{"$f":"IF($B$9=\"Choisir dans la liste\",0,IF($D$10>0,0,VLOOKUP($B$9,'LISTE DES DIPLOMES EP + DUREE'!$B$3:$L$34,7,FALSE)*$F$9))","v":0},null,{"$f":"IF($B$9=\"Choisir dans la liste\",\"\",IF(G17=0,0,B17+C17+E17+G17))","v":""}]
["N+1",null,null,null,null,null,{"$f":"IF($B$9=\"Choisir dans la liste\",0,IF($D$10>0,0,VLOOKUP($B$9,'LISTE DES DIPLOMES EP + DUREE'!$B$3:$L$34,8,FALSE)*$F$9))","v":0},null,{"$f":"IF($B$9=\"Choisir dans la liste\",\"\",IF(G18=0,0,B18+C18+E18+G18))","v":""}]
["N+2",null,null,null,null,null,{"$f":"IF($B$9=\"Choisir dans la liste\",0,IF($D$10>0,0,VLOOKUP($B$9,'LISTE DES DIPLOMES EP + DUREE'!$B$3:$L$34,9,FALSE)*$F$9))","v":0},null,{"$f":"IF($B$9=\"Choisir dans la liste\",\"\",IF(G19=0,0,B19+C19+E19+G19))","v":""}]
["N+3",null,null,null,null,null,{"$f":"IF($B$9=\"Choisir dans la liste\",0,IF($D$10>0,0,VLOOKUP($B$9,'LISTE DES DIPLOMES EP + DUREE'!$B$3:$L$34,10,FALSE)*$F$9))","v":0},null,{"$f":"IF($B$9=\"Choisir dans la liste\",\"\",IF(G20=0,0,B20+C20+E20+G20))","v":""}]
["N+4",null,null,null,null,null,{"$f":"IF($B$9=\"Choisir dans la liste\",0,IF($D$10>0,0,VLOOKUP($B$9,'LISTE DES DIPLOMES EP + DUREE'!$B$3:$L$34,11,FALSE)*$F$9))","v":0},null,{"$f":"IF($B$9=\"Choisir dans la liste\",\"\",IF(G21=0,0,B21+C21+E21+G21))","v":""}]
["Total ",{"$f":"SUM(B17:B21)","v":0},{"$f":"SUM(C17:C21)","v":0},null,{"$f":"SUM(E17:E21)","v":0},null,{"$f":"IF(B9=\"Choisir dans la liste\",\"\",IF(D10>0,\"\",IF(G17=0,\"Coûts ventilés par l'ANFH\",G17+G18+G19+G20+G21)))","v":""},{"$f":"IF(G17>0,0,IF(B11=\"\",D10*F9,B11*F9))","v":{"$error":"#VALUE!"}},{"$f":"IF(G17=0,B22+C22+E22+H22,SUM(I17:I21))","v":{"$error":"#VALUE!"}}]
[]
[]
[null,"Financement sur vos crédits",null,null,{"$f":"I22-I25","v":{"$error":"#VALUE!"}},null,"Financement demandé à l'ANFH"]

{"sheet":"EP AGENT SANS POSTE 1","index":11,"n_rows":25,"n_cols":10,"rows_kept":25,"cut":false,"hidden":false,"merged":[[7,1,7,3],[7,8,7,9],[1,2,1,5],[3,0,3,1],[3,2,3,6],[5,0,5,9],[6,8,6,9],[8,1,8,3],[8,8,8,9],[9,0,9,2],[9,8,9,9],[10,2,10,3],[10,8,10,9],[24,6,24,7],[24,8,24,9],[11,8,11,9],[12,1,12,5],[13,0,13,9],[14,6,15,6],[14,7,15,7],[14,8,15,8],[14,9,15,9],[14,0,15,0],[14,1,14,2],[14,3,15,3],[14,4,15,4],[14,5,15,5],[11,1,11,2],[11,4,11,5]]}
[]
[null,null," EP AGENT SANS POSTE A L'ISSUE DE LEUR CURSUS",null,null,null,"Date limite de dépôt :\n17/11/2023"]
[]
["Etablissement demandeur :",null,"Choisir dans la liste"]
[]
["Descriptif de la demande"]
["Priorité du dossier : N°",null,null,null,null,null,null,null,"Précisions Particulières :  "]
["NOM- Prénom : ",null,null,null,"Grade  :","Choisir dans la liste","N°INSEE agent :",null,"ASH ayant bénéficié de la formation 70h"]
["Intitulé de la formation / Diplôme visé :","Choisir dans la liste",null,null,"Forfait de référence :",{"$f":"IF(F8=\"Choisir dans la liste\",\"\",IF(D10>0,\"21,61\",VLOOKUP(F8,'LISTE DES GRADES ET CATEGORIES'!A5:B20,2,FALSE)))","v":""},null,null,"Formation complète"]
["Si formation inférieure à 52 jours, préciser nombre d'heures :",null,null,null,null,null,null,null,"Module à repasser / Redoublement"]
["Durée scolarité en mois :",{"$f":"IF(B9=\"Choisir dans la liste\",\"\",IF(D10>0,\"\",VLOOKUP(B9,diplomes,6,FALSE)))","v":""},"Durée scolarité en mois :",null,{"$f":"IF(B9=\"Choisir dans la liste\",\"\",VLOOKUP(B9,'LISTE DES DIPLOMES EP + DUREE'!B3:F34,5,FALSE))","v":""},null,"Date résultat école : ",null,"Au-delà des 720 jours CFP"]
["Date début :",null,null,"Date Fin :",null,null,"Lieu :",null,"Dernier report avant perte bénéfice concours"]
["Organisme de formation :"]
["Coût réel de la scolarité"]
["ANNEE","ENSEIGNEMENT",null,"RESERVE ANFH","DEPLACEMENT","RESERVE ANFH","SALAIRES DE L'AGENT","RESERVE ANFH","TOTAL","RESERVE ANFH"]
[null,"Inscription","Pédagogie"]
["N",null,null,null,null,null,{"$f":"IF($B$9=\"Choisir dans la liste\",0,IF($D$10>0,0,VLOOKUP($B$9,'LISTE DES DIPLOMES EP + DUREE'!$B$3:$L$34,7,FALSE)*$F$9))","v":0},null,{"$f":"IF($B$9=\"Choisir dans la liste\",\"\",IF(G17=0,0,B17+C17+E17+G17))","v":""}]
["N+1",null,null,null,null,null,{"$f":"IF($B$9=\"Choisir dans la liste\",0,IF($D$10>0,0,VLOOKUP($B$9,'LISTE DES DIPLOMES EP + DUREE'!$B$3:$L$34,8,FALSE)*$F$9))","v":0},null,{"$f":"IF($B$9=\"Choisir dans la liste\",\"\",IF(G18=0,0,B18+C18+E18+G18))","v":""}]
["N+2",null,null,null,null,null,{"$f":"IF($B$9=\"Choisir dans la liste\",0,IF($D$10>0,0,VLOOKUP($B$9,'LISTE DES DIPLOMES EP + DUREE'!$B$3:$L$34,9,FALSE)*$F$9))","v":0},null,{"$f":"IF($B$9=\"Choisir dans la liste\",\"\",IF(G19=0,0,B19+C19+E19+G19))","v":""}]
["N+3",null,null,null,null,null,{"$f":"IF($B$9=\"Choisir dans la liste\",0,IF($D$10>0,0,VLOOKUP($B$9,'LISTE DES DIPLOMES EP + DUREE'!$B$3:$L$34,10,FALSE)*$F$9))","v":0},null,{"$f":"IF($B$9=\"Choisir dans la liste\",\"\",IF(G20=0,0,B20+C20+E20+G20))","v":""}]
["N+4",null,null,null,null,null,{"$f":"IF($B$9=\"Choisir dans la liste\",0,IF($D$10>0,0,VLOOKUP($B$9,'LISTE DES DIPLOMES EP + DUREE'!$B$3:$L$34,11,FALSE)*$F$9))","v":0},null,{"$f":"IF($B$9=\"Choisir dans la liste\",\"\",IF(G21=0,0,B21+C21+E21+G21))","v":""}]
["Total ",{"$f":"SUM(B17:B21)","v":0},{"$f":"SUM(C17:C21)","v":0},null,{"$f":"SUM(E17:E21)","v":0},null,{"$f":"IF(B9=\"Choisir dans la liste\",\"\",IF(D10>0,\"\",IF(G17=0,\"Coûts ventilés par l'ANFH\",G17+G18+G19+G20+G21)))","v":""},{"$f":"IF(G17>0,0,IF(B11=\"\",D10*F9,B11*F9))","v":{"$error":"#VALUE!"}},{"$f":"IF(G17=0,B22+C22+E22+H22,SUM(I17:I21))","v":{"$error":"#VALUE!"}}]
[]
[]
[null,null,null,null,null,null,"Financement demandé à l'ANFH",null,{"$f":"I22","v":{"$error":"#VALUE!"}}]

{"sheet":"EP AGENT SANS POSTE 2","index":12,"n_rows":25,"n_cols":10,"rows_kept":25,"cut":false,"hidden":false,"merged":[[7,1,7,3],[7,8,7,9],[1,2,1,5],[3,0,3,1],[3,2,3,6],[5,0,5,9],[6,8,6,9],[8,1,8,3],[8,8,8,9],[9,0,9,2],[9,8,9,9],[10,2,10,3],[10,8,10,9],[14,0,15,0],[14,1,14,2],[14,3,15,3],[14,4,15,4],[14,5,15,5],[11,1,11,2],[11,4,11,5],[11,8,11,9],[12,1,12,5],[13,0,13,9],[14,6,15,6],[14,7,15,7],[14,8,15,8],[14,9,15,9],[24,6,24,7],[24,8,24,9]]}
[]
[null,null," EP AGENT SANS POSTE A L'ISSUE DE LEUR CURSUS",null,null,null,"Date limite de dépôt :\n17/11/2023"]
[]
["Etablissement demandeur :",null,"Choisir dans la liste"]
[]
["Descriptif de la demande"]
["Priorité du dossier : N°",null,null,null,null,null,null,null,"Précisions Particulières :  "]
["NOM- Prénom : ",null,null,null,"Grade  :","Choisir dans la liste","N°INSEE agent :",null,"ASH ayant bénéficié de la formation 70h"]
["Intitulé de la formation / Diplôme visé :","Choisir dans la liste",null,null,"Forfait de référence :",{"$f":"IF(F8=\"Choisir dans la liste\",\"\",IF(D10>0,\"21,61\",VLOOKUP(F8,'LISTE DES GRADES ET CATEGORIES'!A5:B20,2,FALSE)))","v":""},null,null,"Formation complète"]
["Si formation inférieure à 52 jours, préciser nombre d'heures :",null,null,null,null,null,null,null,"Module à repasser / Redoublement"]
["Durée scolarité en mois :",{"$f":"IF(B9=\"Choisir dans la liste\",\"\",IF(D10>0,\"\",VLOOKUP(B9,diplomes,6,FALSE)))","v":""},"Durée scolarité en mois :",null,{"$f":"IF(B9=\"Choisir dans la liste\",\"\",VLOOKUP(B9,'LISTE DES DIPLOMES EP + DUREE'!B3:F34,5,FALSE))","v":""},null,"Date résultat école : ",null,"Au-delà des 720 jours CFP"]
["Date début :",null,null,"Date Fin :",null,null,"Lieu :",null,"Dernier report avant perte bénéfice concours"]
["Organisme de formation :"]
["Coût réel de la scolarité"]
["ANNEE","ENSEIGNEMENT",null,"RESERVE ANFH","DEPLACEMENT","RESERVE ANFH","SALAIRES DE L'AGENT","RESERVE ANFH","TOTAL","RESERVE ANFH"]
[null,"Inscription","Pédagogie"]
["N",null,null,null,null,null,{"$f":"IF($B$9=\"Choisir dans la liste\",0,IF($D$10>0,0,VLOOKUP($B$9,'LISTE DES DIPLOMES EP + DUREE'!$B$3:$L$34,7,FALSE)*$F$9))","v":0},null,{"$f":"IF($B$9=\"Choisir dans la liste\",\"\",IF(G17=0,0,B17+C17+E17+G17))","v":""}]
["N+1",null,null,null,null,null,{"$f":"IF($B$9=\"Choisir dans la liste\",0,IF($D$10>0,0,VLOOKUP($B$9,'LISTE DES DIPLOMES EP + DUREE'!$B$3:$L$34,8,FALSE)*$F$9))","v":0},null,{"$f":"IF($B$9=\"Choisir dans la liste\",\"\",IF(G18=0,0,B18+C18+E18+G18))","v":""}]
["N+2",null,null,null,null,null,{"$f":"IF($B$9=\"Choisir dans la liste\",0,IF($D$10>0,0,VLOOKUP($B$9,'LISTE DES DIPLOMES EP + DUREE'!$B$3:$L$34,9,FALSE)*$F$9))","v":0},null,{"$f":"IF($B$9=\"Choisir dans la liste\",\"\",IF(G19=0,0,B19+C19+E19+G19))","v":""}]
["N+3",null,null,null,null,null,{"$f":"IF($B$9=\"Choisir dans la liste\",0,IF($D$10>0,0,VLOOKUP($B$9,'LISTE DES DIPLOMES EP + DUREE'!$B$3:$L$34,10,FALSE)*$F$9))","v":0},null,{"$f":"IF($B$9=\"Choisir dans la liste\",\"\",IF(G20=0,0,B20+C20+E20+G20))","v":""}]
["N+4",null,null,null,null,null,{"$f":"IF($B$9=\"Choisir dans la liste\",0,IF($D$10>0,0,VLOOKUP($B$9,'LISTE DES DIPLOMES EP + DUREE'!$B$3:$L$34,11,FALSE)*$F$9))","v":0},null,{"$f":"IF($B$9=\"Choisir dans la liste\",\"\",IF(G21=0,0,B21+C21+E21+G21))","v":""}]
["Total ",{"$f":"SUM(B17:B21)","v":0},{"$f":"SUM(C17:C21)","v":0},null,{"$f":"SUM(E17:E21)","v":0},null,{"$f":"IF(B9=\"Choisir dans la liste\",\"\",IF(D10>0,\"\",IF(G17=0,\"Coûts ventilés par l'ANFH\",G17+G18+G19+G20+G21)))","v":""},{"$f":"IF(G17>0,0,IF(B11=\"\",D10*F9,B11*F9))","v":{"$error":"#VALUE!"}},{"$f":"IF(G17=0,B22+C22+E22+H22,SUM(I17:I21))","v":{"$error":"#VALUE!"}}]
[]
[]
[null,null,null,null,null,null,"Financement demandé à l'ANFH",null,{"$f":"I22","v":{"$error":"#VALUE!"}}]

{"sheet":"EP AGENT SANS POSTE 3","index":13,"n_rows":25,"n_cols":10,"rows_kept":25,"cut":false,"hidden":false,"merged":[[7,1,7,3],[7,8,7,9],[1,2,1,5],[3,0,3,1],[3,2,3,6],[5,0,5,9],[6,8,6,9],[8,1,8,3],[8,8,8,9],[9,0,9,2],[9,8,9,9],[10,2,10,3],[10,8,10,9],[14,0,15,0],[14,1,14,2],[14,3,15,3],[14,4,15,4],[14,5,15,5],[11,1,11,2],[11,4,11,5],[11,8,11,9],[12,1,12,5],[13,0,13,9],[14,6,15,6],[14,7,15,7],[14,8,15,8],[14,9,15,9],[24,6,24,7],[24,8,24,9]]}
[]
[null,null," EP AGENT SANS POSTE A L'ISSUE DE LEUR CURSUS",null,null,null,"Date limite de dépôt :\n17/11/2023"]
[]
["Etablissement demandeur :",null,"Choisir dans la liste"]
[]
["Descriptif de la demande"]
["Priorité du dossier : N°",null,null,null,null,null,null,null,"Précisions Particulières :  "]
["NOM- Prénom : ",null,null,null,"Grade  :","Choisir dans la liste","N°INSEE agent :",null,"ASH ayant bénéficié de la formation 70h"]
["Intitulé de la formation / Diplôme visé :","Choisir dans la liste",null,null,"Forfait de référence :",{"$f":"IF(F8=\"Choisir dans la liste\",\"\",IF(D10>0,\"21,61\",VLOOKUP(F8,'LISTE DES GRADES ET CATEGORIES'!A5:B20,2,FALSE)))","v":""},null,null,"Formation complète"]
["Si formation inférieure à 52 jours, préciser nombre d'heures :",null,null,null,null,null,null,null,"Module à repasser / Redoublement"]
["Durée scolarité en mois :",{"$f":"IF(B9=\"Choisir dans la liste\",\"\",IF(D10>0,\"\",VLOOKUP(B9,diplomes,6,FALSE)))","v":""},"Durée scolarité en mois :",null,{"$f":"IF(B9=\"Choisir dans la liste\",\"\",VLOOKUP(B9,'LISTE DES DIPLOMES EP + DUREE'!B3:F34,5,FALSE))","v":""},null,"Date résultat école : ",null,"Au-delà des 720 jours CFP"]
["Date début :",null,null,"Date Fin :",null,null,"Lieu :",null,"Dernier report avant perte bénéfice concours"]
["Organisme de formation :"]
["Coût réel de la scolarité"]
["ANNEE","ENSEIGNEMENT",null,"RESERVE ANFH","DEPLACEMENT","RESERVE ANFH","SALAIRES DE L'AGENT","RESERVE ANFH","TOTAL","RESERVE ANFH"]
[null,"Inscription","Pédagogie"]
["N",null,null,null,null,null,{"$f":"IF($B$9=\"Choisir dans la liste\",0,IF($D$10>0,0,VLOOKUP($B$9,'LISTE DES DIPLOMES EP + DUREE'!$B$3:$L$34,7,FALSE)*$F$9))","v":0},null,{"$f":"IF($B$9=\"Choisir dans la liste\",\"\",IF(G17=0,0,B17+C17+E17+G17))","v":""}]
["N+1",null,null,null,null,null,{"$f":"IF($B$9=\"Choisir dans la liste\",0,IF($D$10>0,0,VLOOKUP($B$9,'LISTE DES DIPLOMES EP + DUREE'!$B$3:$L$34,8,FALSE)*$F$9))","v":0},null,{"$f":"IF($B$9=\"Choisir dans la liste\",\"\",IF(G18=0,0,B18+C18+E18+G18))","v":""}]
["N+2",null,null,null,null,null,{"$f":"IF($B$9=\"Choisir dans la liste\",0,IF($D$10>0,0,VLOOKUP($B$9,'LISTE DES DIPLOMES EP + DUREE'!$B$3:$L$34,9,FALSE)*$F$9))","v":0},null,{"$f":"IF($B$9=\"Choisir dans la liste\",\"\",IF(G19=0,0,B19+C19+E19+G19))","v":""}]
["N+3",null,null,null,null,null,{"$f":"IF($B$9=\"Choisir dans la liste\",0,IF($D$10>0,0,VLOOKUP($B$9,'LISTE DES DIPLOMES EP + DUREE'!$B$3:$L$34,10,FALSE)*$F$9))","v":0},null,{"$f":"IF($B$9=\"Choisir dans la liste\",\"\",IF(G20=0,0,B20+C20+E20+G20))","v":""}]
["N+4",null,null,null,null,null,{"$f":"IF($B$9=\"Choisir dans la liste\",0,IF($D$10>0,0,VLOOKUP($B$9,'LISTE DES DIPLOMES EP + DUREE'!$B$3:$L$34,11,FALSE)*$F$9))","v":0},null,{"$f":"IF($B$9=\"Choisir dans la liste\",\"\",IF(G21=0,0,B21+C21+E21+G21))","v":""}]
["Total ",{"$f":"SUM(B17:B21)","v":0},{"$f":"SUM(C17:C21)","v":0},null,{"$f":"SUM(E17:E21)","v":0},null,{"$f":"IF(B9=\"Choisir dans la liste\",\"\",IF(D10>0,\"\",IF(G17=0,\"Coûts ventilés par l'ANFH\",G17+G18+G19+G20+G21)))","v":""},{"$f":"IF(G17>0,0,IF(B11=\"\",D10*F9,B11*F9))","v":{"$error":"#VALUE!"}},{"$f":"IF(G17=0,B22+C22+E22+H22,SUM(I17:I21))","v":{"$error":"#VALUE!"}}]
[]
[]
[null,null,null,null,null,null,"Financement demandé à l'ANFH",null,{"$f":"I22","v":{"$error":"#VALUE!"}}]

{"sheet":"AIDE CALCUL DEPLACEMENT","index":14,"n_rows":53,"n_cols":16,"rows_kept":53,"cut":false,"hidden":false,"merged":[[52,11,53,13],[52,6,53,10],[3,5,3,6],[4,5,4,6],[6,0,6,15],[39,8,40,9],[48,8,49,9],[23,11,23,12],[39,11,40,12],[48,11,49,12],[7,0,7,3],[13,0,13,3],[17,1,17,3],[22,1,22,3],[14,0,14,3],[20,1,20,3],[18,1,18,3],[27,13,27,15],[7,13,7,15],[12,8,12,9],[13,8,13,9],[0,0,0,15],[3,8,3,9],[4,8,4,9],[3,10,3,13],[2,1,2,4],[4,1,4,3]]}
["Fiche d'aide au calcul des déplacements (Transport/hébergement/repas)"]
[]
["Nom-Prénom-Grade"]
[null,null,null,null,null,"Date début",null,"Date Fin","Nbre jours en formation"]
["Intitulé de la formation :","Choisir dans la liste",null,null,null,null,null,null,{"$f":"IF(B5=\"Choisir dans la liste\",\"\",VLOOKUP(B5,'LISTE DES DIPLOMES EP + DUREE'!B3:F34,5,FALSE))","v":""}]
[]
["Détail frais de transport"]
["Utilisation véhicule",null,null,null,null,null,null,null,null,null,null,null,null,"Récapitulatif cumul km parcourus"]
["Catégorie          (puissance fiscale)","Jusqu'à 2 000 Km","Nbre de km","Montant","de 2 001 Km à 10 000 Km","Nbre de Km","Montant ","Au - delà de 10 000 Km","Nbre de Km","Montant","TOTAL",null,null,"Mois","km","cumul"]
["5 CV et moins",0.32,null,{"$f":"B10*C10","v":0},0.4,null,{"$f":"E10*F10","v":0},0.23,null,{"$f":"H10*I10","v":0},{"$f":"D10+G10+J10","v":0},null,null,"Janvier",null,{"$f":"O10","v":0}]
["6 et 7 CV",0.41,null,{"$f":"B11*C11","v":0},0.51,null,{"$f":"E11*F11","v":0},0.3,null,{"$f":"H11*I11","v":0},{"$f":"D11+G11+J11","v":0},null,null,"Février",null,{"$f":"P10+O11","v":0}]
["8 CV et plus",0.45,null,{"$f":"B12*C12","v":0},0.55000000000000004,null,{"$f":"E12*F12","v":0},0.32,null,{"$f":"H12*I12","v":0},{"$f":"D12+G12+J12","v":0},null,null,"Mars",null,{"$f":"P11+O12","v":0}]
[null,null,null,null,null,null,null,null,"Total transport",null,{"$f":"SUM(K10:K12)","v":0},null,null,"Avril",null,{"$f":"P12+O13","v":0}]
[null,null,null,null,null,null,null,null,null,null,null,null,null,"Mai",null,{"$f":"P13+O14","v":0}]
["Frais transports annexes",null,null,null,"Prix unitaire","Nbre","Total",null,null,null,null,null,null,"Juin",null,{"$f":"P14+O15","v":0}]
[null,"Autoroute",null,null,null,null,{"$f":"E16*F16","v":0},null,null,null,null,null,null,"Juillet",null,0]
[null,"Parking",null,null,null,null,{"$f":"E17*F17","v":0},null,null,null,null,null,null,"Août",null,0]
[null,"Métro, bus",null,null,null,null,{"$f":"E18*F18","v":0},null,null,null,null,null,null,"Septembre",null,0]
[null,"SNCF 2ème classe ALLER/RETOUR",null,null,null,null,{"$f":"E19*F19","v":0},null,null,null,null,null,null,"Octobre",null,0]
[null,null,null,null,null,null,null,null,null,null,null,null,null,"Novembre",null,0]
[null,null,null,null,null,null,null,null,null,null,null,null,null,"Décembre",null,0]
[null,null,null,null,null,null,null,null,null,null,null,null,null,null,"Total",{"$f":"P21","v":0}]
[]
[null,null,null,null,null,null,null,null,"Total déplacement",null,null,{"$f":"K13+G16+G17+K21+G18+G19","v":0}]
[]
[]
["Détail frais de découchers"]
[null,null,null,null,null,null,null,null,null,null,null,null,null,"Récapitulatif nombre nuitées par agent"]
["LOYER","Nbre de mois","Coût loyer","Total ",null,null,null,null,null,null,null,null,null,"Mois","Nbre nuits","cumul"]
[null,null,null,{"$f":"B30*C30","v":0},null,null,null,null,null,null,null,null,null,"Janvier",null,{"$f":"O30","v":0}]
[null,null,null,null,null,null,null,null,null,null,null,null,null,"Février",null,{"$f":"P30+O31","v":0}]
[null,null,null,null,null,null,null,null,null,null,null,null,null,"Mars",null,0]
["HOTEL",null,null,null,null,null,null,null,null,null,null,null,null,"Avril",null,0]
[null,"Ville + 200 000 hbt","Nbre ","Montant","Autres villes","Nbre ","Montant","Frais réels","Nbre ","Montant ","Total Hôtel",null,null,"Mai",null,0]
["du 1er au 10ème jour",120,null,{"$f":"B35*C35","v":0},90,null,{"$f":"E35*F35","v":0},null,null,{"$f":"H35*I35","v":0},{"$f":"D35+G35+J35","v":0},null,null,"Juin",null,0]
["du 11ème au 30ème jour",108,null,{"$f":"B36*C36","v":0},81,null,{"$f":"E36*F36","v":0},null,null,{"$f":"H36*I36","v":0},{"$f":"D36+G36+J36","v":0},null,null,"Juillet",null,0]
["du 31ème au 60ème jour",96,null,{"$f":"B37*C37","v":0},72,null,{"$f":"E37*F37","v":0},null,null,{"$f":"H37*I37","v":0},{"$f":"D37+G37+J37","v":0},null,null,"Août",null,0]
["à partir du 61ème jour",72,null,{"$f":"B38*C38","v":0},54,null,{"$f":"E38*F38","v":0},null,null,{"$f":"H38*I38","v":0},{"$f":"D38+G38+J38","v":0},null,null,"Septembre",null,0]
[null,null,null,null,null,null,null,null,"Total nuitées",null,{"$f":"SUM(K35:K38)","v":0},null,null,"Octobre",null,0]
[null,null,null,null,null,null,null,null,"Total découcher",null,null,{"$f":"D30+K39","v":0},null,"Novembre",null,0]
[null,null,null,null,null,null,null,null,null,null,null,null,null,"Décembre",null,0]
[null,null,null,null,null,null,null,null,null,null,null,null,null,null,"Total",{"$f":"P41","v":0}]
[]
["Détail frais de repas"]
[]
[null,"Tarif","Nbre ","Total"]
["Repas plein tarif",20,null,{"$f":"B47*C47","v":0}]
["Repas self",10,null,{"$f":"B48*C48","v":0}]
["Repas frais réels",null,null,{"$f":"B49*C49","v":0},null,null,null,null,"Total repas",null,null,{"$f":"D50","v":0}]
[null,"Total repas",null,{"$f":"SUM(D47:D49)","v":0}]
[]
[]
[null,null,null,null,null,null,"Total  annuel des frais de déplacement",null,null,null,null,{"$f":"L49+L40+L24","v":0}]

{"sheet":"LISTE DES DIPLOMES EP + DUREE","index":15,"n_rows":34,"n_cols":13,"rows_kept":34,"cut":false,"hidden":false,"merged":[]}
["Code diplôme","Diplôme","Durée réglementaire de la formation en semaines","durée réglementaire de la formation en heures","Durée en mois","DUREE DE PRISE EN CHARGE (EN JOURS POUR FD)","DUREE DE PRISE EN CHARGE (EN MOIS POUR SALAIRES) ARRONDI SUP","nombre mois 1ere année","nombre mois 2ème année","nombre mois 3ème année","nombre mois 4ème année","nombre mois 5ème année","Colonne1"]
[null,"Choisir dans la liste",null,null,null,0,0,null,null,null,null,null,{"$f":"SUM('LISTE DES DIPLOMES EP + DUREE'!$H2:$L2)","v":0}]
["2bis","DE aide-soignant 1 540 h","44 semaines (1540h) décret 10 juin 2021 22semaine théorie+ 22 semaines stage",1540,{"$f":"'LISTE DES DIPLOMES EP + DUREE'!$D3/151.67","v":10.153622997296763},220,10.5,10.5,null,null,null,0]
[2,"DE aide-soignant 1 365 h (agent ASHQ)","39 semaines (1365h) décret 10 juin 2021",1365,{"$f":"'LISTE DES DIPLOMES EP + DUREE'!$D4/151.67","v":8.9998022021494037},175,9,9,null,null,null,0]
[3,"DE cadre de santé","41 semaines (1435h) ",1435,{"$f":"'LISTE DES DIPLOMES EP + DUREE'!$D5/151.67","v":9.4613305202083477},205,9.5,3.5,6,null,null,0]
[6,"DE Formation de l'infirmier en pratique avancée (IPA)","1549h 4 semestres universitaires",1549,{"$f":"'LISTE DES DIPLOMES EP + DUREE'!$D6/151.67","v":10.21296235247577},514,10.5,1.5,5.5,3.5]
[1,"DE IDE","120 semaines (4200h) 2100h théorie + 2100h de stage",4200,{"$f":"'LISTE DES DIPLOMES EP + DUREE'!$D7/151.67","v":27.691699083536626},600,28,3.5,9.5,9.5,5.5,0]
[5,"DE infirmier anesthésiste","24 mois (2940h) 2030h théorie +910h de stage",2940,{"$f":"'LISTE DES DIPLOMES EP + DUREE'!$D8/151.67","v":19.384189358475638},487,19.5,2.5,9,8,null,0]
[4,"DE infirmier de bloc opératoire","24 mois (2800h) 1155h théorie + 1645h de stage 09/2022",2800,{"$f":"'LISTE DES DIPLOMES EP + DUREE'!$D9/151.67","v":18.461132722357753},487,18.5,3.5,9.5,5.5,null,0]
[7,"DEAES accompagnant éducatif et social","39 semaines (1365h) 560h de théorie +805h de stage",1365,{"$f":"'LISTE DES DIPLOMES EP + DUREE'!$D10/151.67","v":8.9998022021494037},195,9,2.5,6.5]
[8,"BPJEPS","45.2 semaines (1582h) ",1582,{"$f":"D11/151.67","v":10.43053998813213},226,10.5]
[9,"Brevet d'Etat d'animateur technicien de la jeunesse et de l'éducation populaire",null,900,5.9339355179007063,{"$f":"D12/7","v":128.57142857142858},6,null,null,null,null,null,{"$f":"SUM('LISTE DES DIPLOMES EP + DUREE'!$H38:$L38)","v":0}]
[10,"CAFERUIS","23.4 semaines (820h) 400h théorie+420 stage",820,5.4064745829761991,117.14285714285714,5.5,null,null,null,null,null,{"$f":"SUM('LISTE DES DIPLOMES EP + DUREE'!H13:L13)","v":0}]
[11,"Capacité orthophoniste","5 ans (6428h) 3588h de théorie + 2840h de stage",6428,42.381486121184153,{"$f":"D14/7","v":918.28571428571433},42.5,null,null,null,null,null,{"$f":"SUM('LISTE DES DIPLOMES EP + DUREE'!H14:L14)","v":0}]
[12,"CERTIFICAT ORTHOPTISTE","3368h sur 3 ans 1968h de théorie +1400h de stage",3368,22.206105360321754,{"$f":"D15/7","v":481.14285714285717},22.5,null,null,null,null,null,{"$f":"SUM('LISTE DES DIPLOMES EP + DUREE'!H15:L15)","v":0}]
[13,"DE assistant de service social","3560h 50 semaines (1740h de théorie +1820h stage",3560,23.472011604140569,{"$f":"D16/7","v":508.57142857142856},23.5,null,null,null,null,null,{"$f":"SUM('LISTE DES DIPLOMES EP + DUREE'!H16:L16)","v":0}]
[14,"DE auxiliaire de puériculture","44 semaines (1540h)  770h de théorie +770h de satage",1540,10.153622997296763,{"$f":"D17/7","v":220},10.5,null,null,null,null,null,{"$f":"SUM('LISTE DES DIPLOMES EP + DUREE'!H17:L17)","v":0}]
[15,"DE conseiller en économie sociale","32 semaines (1100h) 540h de théorie+ 560h de stage",1100,{"$f":"D18/151.67","v":7.2525878552119742},{"$f":"D18/7","v":157.14285714285714},7.5,null,null,null,null,null,{"$f":"SUM('LISTE DES DIPLOMES EP + DUREE'!H18:L18)","v":0}]
[16,"DE éducateur jeunes enfants","102.8 semaines (3600h) 1500h théorie + 2100h stage",3600,23.735742071602825,514.28571428571433,24,null,null,null,null,null,{"$f":"SUM('LISTE DES DIPLOMES EP + DUREE'!H19:L19)","v":0}]
[17,"DE éducateur spécialisé","102 semaines (3550h)  1450h de théorie+2100h de stage",3550,23.406078987275006,507.14285714285717,23.5,null,null,null,null,null,{"$f":"SUM('LISTE DES DIPLOMES EP + DUREE'!H20:L20)","v":0}]
[18,"DE éducateur technique spécialisé","90 semaines (3160h) 1200h théorie +1960h stage",3160,20.834706929518035,451.42857142857144,21,null,null,null,null,null,{"$f":"SUM('LISTE DES DIPLOMES EP + DUREE'!H21:L21)","v":0}]
[19,"DE ergothérapeute","106 semaines (3714h) ",3714,24.487373903870246,530.57142857142856,24.5,null,null,null,null,null,{"$f":"SUM('LISTE DES DIPLOMES EP + DUREE'!H22:L22)","v":0}]
[20,"DE manipulateur électroradiologie","120 semaines (4444h) ",4444,29.300454935056376,634.85714285714289,29.5,null,null,null,null,null,{"$f":"SUM('LISTE DES DIPLOMES EP + DUREE'!H23:L23)","v":0}]
[21,"DE masseur-kinésithérapeute","Durée 4 années (2 cyles de 2 ans)  soit 190 semaines  : 6670 h dont 1980 h Cours Magistraux et Travaux Dirigés, 1470 h stages, (3220 h Temps personnel non pris en charge) FD prise en charge durant les heures de CM et TD et stages",3450,22.746752818619374,492.85714285714283,23,null,null,null,null,null,{"$f":"SUM('LISTE DES DIPLOMES EP + DUREE'!H24:L24)","v":0}]
[22,"DE moniteur éducateur","55 semaines (1930h) 950h de théorie +980h de stage",1930,12.724995055053736,275.71428571428572,13,null,null,null,null,null,{"$f":"SUM('LISTE DES DIPLOMES EP + DUREE'!H25:L25)","v":0}]
[23,"DE pédicure podologue","120 semaines (4200h) ",4200,{"$f":"D26/151.67","v":27.691699083536626},{"$f":"D26/7","v":600},28,null,null,null,null,null,{"$f":"SUM('LISTE DES DIPLOMES EP + DUREE'!H26:L26)","v":0}]
[24,"DE Préparateur en pharmacie hospitalière","42 semaines (1360h) ",1360,{"$f":"D27/151.67","v":8.9668358937166222},{"$f":"D27/7","v":194.28571428571428},9,null,null,null,null,null,{"$f":"SUM('LISTE DES DIPLOMES EP + DUREE'!H27:L27)","v":0}]
[25,"DE psychomotricien","72 semaines (2522h) ",2522,{"$f":"D28/151.67","v":16.628205973495088},{"$f":"D28/7","v":360.28571428571428},17,null,null,null,null,null,{"$f":"SUM('LISTE DES DIPLOMES EP + DUREE'!H28:L28)","v":0}]
[26,"DE puéricultrice","43 semaines (1500h)  790h de théorie +790h de stage",1500,{"$f":"D29/151.67","v":9.8898925298345102},{"$f":"D29/7","v":214.28571428571428},10,2.5,7.5,0,0,0,{"$f":"SUM('LISTE DES DIPLOMES EP + DUREE'!H29:L29)","v":10}]
[27,"DE sage-femme","156 semaines (5460h) ",5460,35.999208808597615,780,36,null,null,null,null,null,{"$f":"SUM('LISTE DES DIPLOMES EP + DUREE'!H30:L30)","v":0}]
[28,"DE technicien en analyse biomédicales","98 semaines (3423h) ",3423,22.568734753082353,489,23,null,null,null,null,null,{"$f":"SUM('LISTE DES DIPLOMES EP + DUREE'!H31:L31)","v":0}]
[29,"DEJEPS","34 semaines (1200h) ",1200,7.9119140238676078,171.42857142857142,8,null,null,null,null,null,{"$f":"SUM('LISTE DES DIPLOMES EP + DUREE'!H32:L32)","v":0}]
[30,"Diplôme d'assistant de régulation médicale (ARM)","46 semaines (1470h)",1470,9.6920946792378189,210,10,null,null,null,null,null,{"$f":"SUM('LISTE DES DIPLOMES EP + DUREE'!H33:L33)","v":0}]
[31,"Master péri natalité","33 semaines (1140h)",1140,7.5163183226742278,162.85714285714286,8,null,null,null,null,null,{"$f":"SUM('LISTE DES DIPLOMES EP + DUREE'!H34:L34)","v":0}]

{"sheet":"LISTE DES GRADES ET CATEGORIES","index":16,"n_rows":20,"n_cols":2,"rows_kept":20,"cut":false,"hidden":true,"merged":[]}
["Forfaits mensuel par grade ou catégorie"]
[]
["Grade","forfait"]
["Choisir dans la liste"]
["ADJ ADM",3050]
["AEQ",3050]
["ASHQ",3050]
["AS",3450]
["AMP",3450]
["ACCOMPAGNANT EDUC ET SOCIAL",3450]
["AP",3450]
["OP",3450]
["ASSIST SERV SOCIAL",3650]
["EDUC SPE",3650]
["PREP PHAR HOSP",3650]
["IDE",3960]
["IBODE",3960]
["Cat. A",4360]
["Cat. B",3650]
["Cat. C",3050]

{"sheet":"Liste Ets","index":17,"n_rows":107,"n_cols":1,"rows_kept":107,"cut":false,"hidden":true,"merged":[]}
["Choisir dans la liste"]
["MID001 CH AX-LES-THERMES"]
["MID003 CHI DES VALLEES DE L'ARIEGE"]
["MID007 EHPAD MIREPOIX"]
["MID010 CH ARIEGE COUSERANS ST GIRONS"]
["MID011 EHPAD ST-LIZIER"]
["MID012 EHPAD SAVERDUN"]
["MID013 CH TARASCON S/ARIEGE"]
["MID014 EHPAD AUBIN"]
["MID015 EHPAD CAPDENAC"]
["MID017 CH DECAZEVILLE"]
["MID018 EHPAD ENTRAYGUES-SUR-TRUYERE"]
["MID019 CHI ESPALION"]
["MID022 EHPAD MUR-DE-BARREZ"]
["MID023 EHPAD RIEUPEYROUX"]
["MID024 CH RODEZ"]
["MID026 CH ST-GENIEZ D'OLT"]
["MID027 EHPAD ST-ROME-DE-TARN"]
["MID028 CHI SALLES LA SOURCE"]
["MID030 CH VILLEFRANCHE DE ROUERGUE"]
["MID031 EHPAD AUTERIVE"]
["MID032 EHPAD CECILE BOUSQUET BESSIERES"]
["MID033 EHPAD BOULOGNE S/GESSE"]
["MID034 EHPAD CARBONNE"]
["MID035 EHPAD GRENADE SUR GARONNE"]
["MID036 EHPAD L'ISLE EN DODON"]
["MID037 CH BAGNERES DE LUCHON"]
["MID038 EHPAD FRONTON"]
["MID040 CH MURET"]
["MID041 CH REVEL"]
["MID042 CH ST-GAUDENS"]
["MID043 EHPAD ST-ORENS DE GAMEVILLE"]
["MID044 CHU TOULOUSE"]
["MID045 CH MARCHANT TOULOUSE"]
["MID046 CDEF TOULOUSE"]
["MID047 EHPAD VILLEMUR S/TARN"]
["MID048 CH AUCH"]
["MID049 CHS GERS AUCH"]
["MID050 CH CONDOM"]
["MID051 EHPAD EAUZE"]
["MID052 EPS LOMAGNE"]
["MID053 CH GIMONT"]
["MID054 EHPAD L'ISLE-JOURDAIN"]
["MID056 CH LOMBEZ SAMATAN"]
["MID057 CH MAUVEZIN"]
["MID058 CH MIRANDE"]
["MID059 CH NOGARO"]
["MID060 CTRE CANT. LAVAL. SAINT-CLAR"]
["MID062 CH VIC FEZENSAC"]
["MID063 CH CAHORS"]
["MID064 CH FIGEAC"]
["MID065 CH GOURDON"]
["MID066 EHPAD MARTEL"]
["MID067 EHPAD MONTCUQ"]
["MID068 EHPAD PRAYSSAC"]
["MID069 CH ST-CERE"]
["MID070 EHPAD SALVIAC"]
["MID071 EHPAD ARGELES-GAZOST"]
["MID072 CH ASTUGUE"]
["MID073 CH BAGNERES DE BIGORRE"]
["MID076 CH LANNEMEZAN"]
["MID079 EHPAD RABASTENS DE BIGORRE"]
["MID080 CH TARBES LOURDES"]
["MID082 CH ALBI"]
["MID083 CHI CASTRES-MAZAMET"]
["MID086 CH GAILLAC"]
["MID087 CH GRAULHET"]
["MID088 CH LAVAUR"]
["MID091 EHPAD RABASTENS"]
["MID092 EHPAD ST-PIERRE DE TRIVISY"]
["MID093 ITEP  VIANE"]
["MID094 EHPAD BEAUMONT DE LOMAGNE"]
["MID096 CH CAUSSADE"]
["MID098 EHPAD GRISOLLES"]
["MID099 EHPAD LAGUEPIE"]
["MID101 EHPAD LA MEDIEVALE ARGENTEE"]
["MID102 CHI CASTELSARR.-MOISSAC"]
["MID103 CH MONTAUBAN"]
["MID104 EHPAD MONTECH"]
["MID105 CH NEGREPELISSE"]
["MID106 EHPAD ST-ANTONIN-NOBLE-VAL"]
["MID107 CH VALENCE D'AGEN"]
["MID108 EHPAD VERDUN S/GARONNE"]
["MID109 CDEF CAHORS"]
["MID110 EHPAD LE PASTOUREL BESSIERES"]
["MID113 EPAS 65 CASTELNAU RIVIERE BASSE"]
["MID116 ESAT/FOYER RIEUX-VOLVESTRE"]
["MID118 CDEF MONTAUBAN"]
["MID119 IME CAMPAN"]
["MID121 CH GRAMAT"]
["MID122 FDE ALBI"]
["MID125 EHPAD CAZERES"]
["MID127 EPMS L'HERM"]
["MID128 CDDS RODEZ"]
["MID129 EHPAD PUY-L'EVEQUE"]
["MID130 EHPAD ST CLAR"]
["MID131 FOYER MONFERRAN SAVES"]
["MID132 MDEF AUCH"]
["MID133 CCAS TOULOUSE"]
["MID134 CTMR TOULOUSE"]
["MID135 GIP-MIPIH TOULOUSE"]
["MID137 MDEF ONET-LE-CHATEAU"]
["MID138 MDEF TARBES"]
["MID139 EHPAD RIEUMES"]
["MID141 EHPAD RAMONVILLE"]
["MID142 CH SAINT-PONS-DE-THOMIERES"]
["MID143 EHPAD BARBAZAN"]